[Event "Romanian Rapid Open 2022"]
[Site "Sebes"]
[Date "2022.12.02"]
[Round "4.30"]
[White "Hoanca, Alexia-Ioana"]
[Black "Lupulescu, Adrian-Calin"]
[Result "0-1"]
[ECO "B03"]
[WhiteElo "1644"]
[BlackElo "1930"]
[Annotator "TA"]
[PlyCount "95"]
[EventDate "2022.12.02"]
[EventType "rapid"]
[EventCountry "ROU"]
[SourceTitle "playchess.com"]
[Source "ChessBase"]
[SourceQuality "1"]
[TimeControl "600+5"]

{[%evp 14,95,58,45,47,37,77,0,0,-29,-30,-22,-9,-18,-14,-55,-54,-106,-103,-120,-100,-262,-206,-594,-594,-593,-592,-593,-585,-592,-592,-583,-571,-592,-592,-583,-574,-751,-746,-758,-755,-750,-737,-722,-646,-641,-651,-658,-640,-620,-634,-725,-709,-797,-792,-800,-789,-860,-885,-880,-864,-1035,-1013,-1477,-1440,-1610,-1578,-2002,-2056,-2856,-2533,-2701,-2560,-12827,-9595,-12841,-12842,-29989,-29990,-29990,-29991,-29991,-29992,-29992]} 1. e4 {[%emt 0:00:01][%cal Be2e4,Be4e5][%mdl 32]} Nf6 {[%emt 0:00:04]} 2. e5 {[%emt 0:00:02]} Nd5 {[%emt 0:00:02]} 3. d4 {[%emt 0:00:01]} d6 {[%emt 0:00:02]} 4. c4 {[%emt 0:00:02]} Nb6 {[%emt 0:00:01]} 5. f4 {[%emt 0:00:02]} dxe5 {[%emt 0:00:02]} 6. fxe5 {[%emt 0:00:03]} c5 {[%emt 0:00:03]} 7. d5 {[%emt 0:00:52]} g6 {[%emt 0:00:01]} 8. Nc3 {[%emt 0:01:34] The main line 8.Nc3 scores better than 8.Nf3.} Bg7 {[%emt 0:00:02][%cal Ob8d7] B03: Alekhine's Defence: Four Pawns Attack.} 9. Bf4 {[%emt 0:00:03]} O-O {[%emt 0:00:04] [#]} 10. Nf3 {[%emt 0:01:36]} (10. Qd2 $1 $16) 10... Bg4 $1 $11 {[%emt 0:00:03] The position is equal.} 11. Qd2 {[%emt 0:01:44]} Bxf3 {[%emt 0:00:33]} 12. gxf3 {[%emt 0:00:01] aiming for Bg3.} N8d7 {[%emt 0:00:01]} 13. Qe3 {[%emt 0:00:27]} Qb8 {[%emt 0:00:27][%cal Rg7e5]} 14. e6 {[%emt 0:01:48]} (14. O-O-O $5 {[%cal Rd1e1]}) 14... Ne5 {[%emt 0:00:52]} 15. Bxe5 {[%emt 0:00:57] [#]} (15. Bg3 $1 $15) 15... Bxe5 $146 {[%emt 0:00:05]} ({Predecessor:} 15... Qxe5 16. Qxe5 Bxe5 17. Kf2 fxe6 18. dxe6 Rf6 19. Re1 Bd4+ 20. Kg3 Raf8 21. Bg2 Bxc3 22. bxc3 Nxc4 {0-1 (66) Delaire,E (1890)-Havelka,G (1730) Finistere 2002}) 16. exf7+ {[%emt 0:00:56]} Rxf7 {[%emt 0:00:13]} 17. Bh3 $2 {[%emt 0:00:16]} (17. Bd3 $17 {keeps fighting.}) 17... Kg7 {[%emt 0:00:10]} 18. b3 {[%emt 0:00:35]} (18. Qxc5 $2 {is the wrong capture.} Bxc3+ 19. bxc3 Qe5+ 20. Kd2 Rxf3 $19) (18. Qe2 {is more resistant.} Bxc3+ 19. bxc3) 18... Bd4 $19 {[%emt 0:00:19]} ({Stronger than} 18... Bxh2 19. Be6 Qg3+ 20. Ke2 (20. Kd2 $2 Rxf3 21. Ne2 Rxe3 $17) 20... Qg2+ 21. Qf2 Qxf2+ 22. Kxf2 $15) 19. Qd3 {[%emt 0:00:20]} Qe5+ {[%emt 0:00:06]} 20. Kd2 {[%emt 0:00:02]} Bxc3+ {[%emt 0:00:29]} 21. Qxc3 {[%emt 0:00:06]} Qxc3+ {[%emt 0:00:02]} 22. Kxc3 {[%emt 0:00:01]} Rxf3+ {[%emt 0:00:03]} 23. Kd2 {[%emt 0:00:01]} Rxh3 {[%emt 0:00:03]} 24. Rae1 {[%emt 0:00:02]} Re8 {[%emt 0:00:28]} 25. d6 {[%emt 0:00:20]} e5 {[%emt 0:00:10]} 26. Kc2 {[%emt 0:00:07]} Rh4 {[%emt 0:00:18]} 27. Re2 {[%emt 0:00:06]} Rd4 {[%emt 0:00:05]} 28. Rhe1 {[%emt 0:00:02]} Rxd6 {[%emt 0:00:05]} 29. Rxe5 {[%emt 0:00:02]} Rxe5 {[%emt 0:00:02]} 30. Rxe5 {[%emt 0:00:02][%mdl 4096] Endgame KRN-KR} Nd7 {[%emt 0:01:55]} 31. Re7+ {[%emt 0:00:02]} Kh6 {[%emt 0:00:01]} 32. Re4 {[%emt 0:00:19]} g5 {[%emt 0:00:13]} 33. Re8 {[%emt 0:00:09]} Nf6 {[%emt 0:00:36]} 34. Re7 {[%emt 0:00:05]} Rd7 {[%emt 0:00:02]} 35. Re6 {[%emt 0:00:02]} Kg6 {[%emt 0:00:04]} 36. Re5 {[%emt 0:00:02]} b6 {[%emt 0:00:03]} 37. Re6 {[%emt 0:00:02]} Kf5 {[%emt 0:00:11]} 38. Re3 {[%emt 0:00:04]} g4 {[%emt 0:00:04] Threatens to win with ...Ne4.} 39. Re2 {[%emt 0:00:03]} Ne4 {[%emt 0:00:06]} 40. Rg2 {[%emt 0:00:07]} h5 {[%emt 0:00:16][%cal Bh7h5,Bh5h4,Bh4g3,Bg3g2][%mdl 32]} 41. Kc1 {[%emt 0:00:02]} h4 {[%emt 0:00:03] And now ...g3 would win.} 42. Rg1 {[%emt 0:00:02]} g3 {[%emt 0:00:06]} 43. hxg3 {[%emt 0:00:03]} hxg3 {[%emt 0:00:01]} 44. Rf1+ {[%emt 0:00:01]} Nf2 {[%emt 0:00:04][%cal Od7d1] ( -> ...Rd1+!)} 45. Rg1 {[%emt 0:00:10] [#] Inhibits Rd1+.} Rd1+ $1 {[%emt 0:00:10] Black mates.} 46. Rxd1 {[%emt 0:00:03]} Nxd1 {[%emt 0:00:02]} 47. Kxd1 {[%emt 0:00:01]} g2 {[%emt 0:00:03]} 48. Ke2 {[%emt 0:00:01] White got outplayed after the opening.   Weighted Error Value: White=0.52/Black=0.14 (very precise)} 0-1

[Event "Romanian Rapid Open 2022"]
[Site "Sebes"]
[Date "2022.12.02"]
[Round "4.31"]
[White "Anghel, Iulian-Mihai"]
[Black "Tatar, Marius Lucian"]
[Result "1-0"]
[ECO "C45"]
[WhiteElo "2061"]
[BlackElo "1405"]
[Annotator "TA"]
[PlyCount "95"]
[EventDate "2022.12.02"]
[EventType "rapid"]
[EventCountry "ROU"]
[SourceTitle "playchess.com"]
[Source "ChessBase"]
[SourceQuality "1"]
[TimeControl "600+5"]

{[%evp 14,94,0,-10,20,-75,-75,-79,-71,-79,-82,-71,-79,-81,-62,-72,-70,-89,-64,-86,-68,-81,-54,-47,-66,-64,-25,-34,-11,0,0,0,0,0,9,0,0,0,0,0,85,104,129,0,0,0,0,0,4,0,5018,5002,29961,29960,29981,29982,29982,29983,29984,29985,29986,29987,29987,29987,29991,29992,29992,29992,29993,29993,29993,29994,29994,29995,29995,29996,29997,29997,29997,29998,29998,29999,29999]} 1. e4 {[%emt 0:00:02]} e5 {[%emt 0:00:01]} 2. Nf3 {[%emt 0:00:02]} Nc6 {[%emt 0:00:01]} 3. d4 {[%emt 0:00:13]} exd4 {[%emt 0:00:04]} 4. Nxd4 {[%emt 0:00:02]} Bc5 {[%emt 0:00:02]} 5. Nb3 {[%emt 0:00:02]} Bb6 {[%emt 0:00:02]} 6. Nc3 {[%emt 0:00:02]} Nf6 {[%emt 0:00:12]} 7. Bg5 {[%emt 0:01:10]} h6 {[%emt 0:00:07]} 8. Bh4 {[%emt 0:00:03]} d6 {[%emt 0:00:10][%cal Of6e4] 8...0-0 is more advanced technology. C45: Scotch Game.} 9. Qd2 {[%emt 0:01:21] [#]} (9. Qe2 $11) 9... Nxe4 $1 $17 {[%emt 0:00:31]} 10. Qf4 {[%emt 0:00:55]} Nf6 $1 {[%emt 0:00:10] Black is better.} 11. Bxf6 {[%emt 0:00:34]} Qxf6 {[%emt 0:00:03]} 12. Qxf6 {[%emt 0:00:01]} gxf6 {[%emt 0:00:01]} 13. Nd5 {[%emt 0:00:03]} f5 {[%emt 0:00:26] [#]} 14. O-O-O $146 {[%emt 0:00:22]} ({Predecessor:} 14. f4 Be6 15. Nxb6 axb6 16. Nc1 Nb4 17. Kd2 Ke7 18. a3 Bd5 19. c3 Nc6 20. Nd3 {0-1 (52) Hanzl,T (1804)-Paldus,P (2025) Pardubice 2021}) 14... Be6 {[%emt 0:00:02]} (14... Bxf2 $2 15. Nxc7+ Kd8 16. Nxa8 $18) 15. Be2 {[%emt 0:03:07]} O-O-O {[%emt 0:00:14]} ({Don't play} 15... Bxf2 16. Nxc7+ Kd7 17. Nxa8 $16) 16. Rhf1 {[%emt 0:00:04]} Rhe8 {[%emt 0:00:04]} 17. Bb5 {[%emt 0:00:26]} a6 {[%emt 0:00:34]} 18. Nxb6+ {[%emt 0:00:14]} cxb6 {[%emt 0:00:02]} 19. Bd3 {[%emt 0:00:08]} Nb4 {[%emt 0:00:27]} 20. a3 {[%emt 0:00:35]} Nxd3+ {[%emt 0:00:07]} 21. Rxd3 {[%emt 0:00:01]} Kb8 {[%emt 0:00:26] Hoping for ...Bc4.} 22. Rfd1 {[%emt 0:00:25]} Bxb3 {[%emt 0:00:10]} 23. Rxb3 $11 {[%emt 0:00:12][%mdl 4096] Endgame KRR-KRR} b5 {[%emt 0:00:03]} 24. Rh3 {[%emt 0:00:29][%cal Oh3h5]} Re2 {[%emt 0:00:05]} 25. Rf3 {[%emt 0:00:08]} Re5 {[%emt 0:00:07]} 26. Rd4 {[%emt 0:00:16]} d5 {[%emt 0:01:24] [#]} (26... Rg8 $1 $11 {keeps the balance.}) 27. Rdf4 $1 $16 {[%emt 0:00:28]} Rg8 {[%emt 0:00:04] [#]} 28. Rxf5 {[%emt 0:00:53]} (28. g3 $1 $16) 28... Rxf5 $11 {[%emt 0:00:01]} 29. Rxf5 {[%emt 0:00:01] Strongly threatening g3.} Rxg2 $16 {[%emt 0:00:02] KR-KR} 30. h4 {[%emt 0:00:02]} Rg4 {[%emt 0:00:17]} 31. h5 {[%emt 0:00:05]} Rg5 $2 {[%emt 0:00:01][%mdl 8192] White now steadily converts the win.} (31... Rh4 $11) 32. Rxg5 $18 {[%emt 0:00:02][%cal Og5g6] White threatens Rg6! and mate.} ({Weaker is} 32. Rxf7 Rxh5 33. Kd2 Rg5 $11) 32... hxg5 {[%emt 0:00:03] KP-KP} 33. h6 {[%emt 0:00:01] White mates.} f5 {[%emt 0:00:02]} 34. h7 {[%emt 0:00:01]} f4 {[%emt 0:00:02]} 35. h8=Q+ {[%emt 0:00:01]} Ka7 {[%emt 0:00:02]} 36. Qd4+ {[%emt 0:00:01]} b6 {[%emt 0:00:01]} 37. Qxd5 {[%emt 0:00:02]} g4 {[%emt 0:00:01]} 38. Kd2 {[%emt 0:00:02]} g3 {[%emt 0:00:02]} 39. fxg3 {[%emt 0:00:01]} fxg3 {[%emt 0:00:01]} 40. Ke3 {[%emt 0:00:01]} a5 {[%emt 0:00:02]} 41. Kf4 {[%emt 0:00:03]} g2 {[%emt 0:00:02]} 42. Qxg2 {[%emt 0:00:01]} Kb8 {[%emt 0:00:01]} 43. Ke5 {[%emt 0:00:02]} b4 {[%emt 0:00:02]} 44. Kd6 {[%emt 0:00:04]} bxa3 {[%emt 0:00:02]} 45. bxa3 {[%emt 0:00:04]} Ka7 {[%emt 0:00:02]} 46. Kc7 {[%emt 0:00:02][%csl Gc7][%cal Rg2b7]} Ka6 {[%emt 0:00:03]} 47. a4 {[%emt 0:00:03][%csl Gc7][%cal Rg2b7]} b5 {[%emt 0:00:01]} 48. Qb7# {[%emt 0:01:08] Weighted Error Value: White=0.10 (very precise) /Black=0.27 (precise)} 1-0

[Event "Romanian Rapid Open 2022"]
[Site "Sebes"]
[Date "2022.12.02"]
[Round "4.32"]
[White "Balaban-Voia, Alexandru"]
[Black "Sida, Flavia-Maria"]
[Result "1-0"]
[ECO "A42"]
[WhiteElo "1994"]
[BlackElo "1410"]
[Annotator "TA"]
[PlyCount "55"]
[EventDate "2022.12.02"]
[EventType "rapid"]
[EventCountry "ROU"]
[SourceTitle "playchess.com"]
[Source "ChessBase"]
[SourceQuality "1"]
[TimeControl "600+5"]

{[%evp 9,55,20,29,14,58,29,92,23,62,31,32,23,79,78,77,74,184,119,226,222,255,243,316,184,212,161,141,119,143,112,273,273,294,220,298,293,376,381,483,467,525,514,506,406,628,627,606,595]} 1. Nf3 {[%emt 0:00:03]} d6 {[%emt 0:00:10]} 2. d4 {[%emt 0:00:07]} g6 {[%emt 0:00:17]} 3. c4 {[%emt 0:00:09]} Bg7 {[%emt 0:00:25]} 4. Nc3 {[%emt 0:00:02]} Nc6 {[%emt 0:00:12]} 5. e4 {[%emt 0:01:46]} e5 {[%emt 0:00:06][%cal Re5d4]} 6. Be3 {[%emt 0:00:49] A42: Modern Defence: Averbakh Variation.} f5 {[%emt 0:02:39]} 7. dxe5 {[%emt 0:02:24]} Nxe5 {[%emt 0:00:20]} (7... fxe4 $1 $11 {keeps the balance.} 8. Bg5 (8. Nxe4 Nxe5 9. Nxe5 Bxe5 $11) 8... Qd7 9. Nxe4 Nxe5) 8. Nxe5 {[%emt 0:00:26] White is more active.} (8. c5 $16) 8... Bxe5 $11 {[%emt 0:00:52]} 9. exf5 {[%emt 0:01:56]} (9. c5 $5 {[%cal Rc5d6]}) 9... Bxf5 {[%emt 0:00:05] [#]} 10. Be2 $146 {[%emt 0:00:04]} ({Predecessor:} 10. g3 c6 11. Bg2 Be6 12. Qe2 Qd7 13. O-O Qf7 14. Qd2 Bxc4 15. Rfe1 {1-0 (33) Dietmayer Kraeutler,M (2260)-Czupor,A (2084) Bad Gleichenberg 2014}) 10... Qf6 {[%emt 0:00:29]} (10... Nf6 $11) 11. O-O $16 {[%emt 0:00:29]} (11. Nd5 Qf7 $11) 11... Ne7 {[%emt 0:00:34]} 12. Nb5 {[%emt 0:00:25]} Kf7 {[%emt 0:01:36] [#]} (12... O-O $16) 13. Nxc7 {[%emt 0:00:42]} ({White should play} 13. Qd2 $1 $18) 13... Rac8 {[%emt 0:00:02]} (13... Bxb2 $16 14. Nxa8 Rxa8) 14. Nd5 $18 {[%emt 0:00:02]} (14. Nb5 $6 d5 $16) 14... Nxd5 {[%emt 0:00:01]} 15. Qxd5+ {[%emt 0:00:04]} Be6 {[%emt 0:01:01] [#]} 16. Qxb7+ {[%emt 0:00:03]} (16. f4 $142 $1 Bxb2 17. Qxb7+ Kg8 18. Rad1) 16... Qe7 {[%emt 0:00:01]} 17. Qxe7+ {[%emt 0:01:14]} ({But not} 17. Qxa7 $6 Qxa7 18. Bxa7 Bxc4 $16) 17... Kxe7 {[%emt 0:00:02]} 18. f4 {[%emt 0:00:24]} Bf6 {[%emt 0:00:13]} 19. Rac1 {[%emt 0:00:13] Strongly threatening b3.} h5 $2 {[%emt 0:00:21] Loses the game.} (19... Bxb2 $16 20. Rb1 Rb8) 20. b3 {[%emt 0:00:08]} ({Don't play} 20. Bxa7 $6 Ra8 $18) 20... Rc7 {[%emt 0:00:12]} 21. c5 {[%emt 0:00:03][%cal Bc4c5,Bc5c6,Bc6c7][%mdl 32]} d5 {[%emt 0:00:08]} 22. c6 {[%emt 0:00:07]} d4 {[%emt 0:00:02]} 23. Bd2 {[%emt 0:00:01][%cal Be3d2,Bd2b4,Bb4d6][%mdl 32]} h4 {[%emt 0:00:14]} 24. Bb4+ {[%emt 0:00:07]} Ke8 {[%emt 0:00:31]} 25. Bd6 {[%emt 0:00:09] Against h3} Rc8 {[%emt 0:00:03]} 26. c7 {[%emt 0:00:06] Prevents Rd8.} h3 {[%emt 0:00:40]} (26... Kd7 $142) 27. Ba6 {[%emt 0:00:07]} hxg2 {[%emt 0:00:06]} 28. Rfe1 {[%emt 0:00:02] Weighted Error Value: White=0.34/Black=0.58} (28. Bxc8 $2 {perishes.} gxf1=Q+ 29. Rxf1 Bxc8 $19) 1-0

[Event "Romanian Rapid Open 2022"]
[Site "Sebes"]
[Date "2022.12.02"]
[Round "4.33"]
[White "Craciun, Sasha-Matei"]
[Black "Dragut, Stefan-Cristian"]
[Result "1-0"]
[ECO "C10"]
[WhiteElo "2001"]
[BlackElo "1217"]
[Annotator "TA"]
[PlyCount "77"]
[EventDate "2022.12.02"]
[EventType "rapid"]
[EventCountry "ROU"]
[SourceTitle "playchess.com"]
[Source "ChessBase"]
[SourceQuality "1"]
[TimeControl "600+5"]

{[%evp 14,77,47,20,20,29,27,28,33,7,16,2,16,6,59,21,41,28,32,42,42,41,41,37,42,39,43,37,52,20,45,0,0,0,0,0,0,0,108,23,116,99,116,78,216,195,127,7,8,8,8,0,4,10,537,114,933,932,923,896,866,851,845,816,1315,1315]} 1. e4 {[%emt 0:00:01]} e6 {[%emt 0:00:00]} 2. d4 {[%emt 0:00:04]} d5 {[%emt 0:00:01]} 3. Nc3 {[%emt 0:00:01]} dxe4 {[%emt 0:00:02]} 4. Nxe4 {[%emt 0:00:03]} Bd7 {[%emt 0:00:01]} 5. Nf3 {[%emt 0:00:09]} Bc6 {[%emt 0:00:01]} 6. Bd3 {[%emt 0:00:06]} Nd7 {[%emt 0:00:02]} 7. Qe2 {[%emt 0:00:22]} Ngf6 {[%emt 0:00:01]} 8. Bd2 {[%emt 0:00:24]} Bxe4 {[%emt 0:00:11] was the old line (8...Nxe4). C10: French with 3 Nc3: Unusual Black 3rd moves and 3...dxe4.} 9. Bxe4 {[%emt 0:00:02]} Nxe4 10. Qxe4 {[%emt 0:00:01]} c6 {[%emt 0:00:03] White has an edge.} 11. O-O-O {[%emt 0:01:28]} Nf6 {[%emt 0:00:12]} 12. Qd3 {[%emt 0:00:07] [#]} Qb6 $146 {[%emt 0:00:15]} ({Predecessor:} 12... Bd6 13. Kb1 Qc7 14. Rhe1 O-O-O 15. Bg5 Kb8 16. Qb3 Qb6 17. Qxb6 axb6 18. c4 Rd7 {½-½ (58) Gajcin,M (2281)-Schouten,M (2118) Stavanger 2022}) 13. Kb1 {[%emt 0:01:01]} O-O-O {[%emt 0:00:17]} (13... Rd8 $11) 14. Qc4 {[%emt 0:00:26]} Bd6 {[%emt 0:00:54]} 15. Rhe1 {[%emt 0:00:31]} Rhe8 {[%emt 0:00:38]} 16. Qa4 {[%emt 0:00:36]} (16. c3 {seems wilder.} h6 17. Qe2 Qb5 18. c4) 16... Bc7 {[%emt 0:00:33]} 17. c4 {[%emt 0:00:33]} c5 {[%emt 0:01:39]} 18. Bc3 {[%emt 0:01:27]} a6 {[%emt 0:00:40]} 19. a3 {[%emt 0:00:50]} cxd4 {[%emt 0:00:30]} 20. Bxd4 {[%emt 0:00:03]} Qa5 {[%emt 0:00:02]} 21. Qc2 {[%emt 0:00:29]} (21. Qxa5 {simplifies} Bxa5 22. b4 Bc7 23. Kc2) 21... e5 {[%emt 0:01:08]} 22. Bc3 {[%emt 0:00:12]} Rxd1+ {[%emt 0:00:32]} 23. Rxd1 {[%emt 0:00:12]} Qc5 {[%emt 0:00:11]} 24. Qe2 {[%emt 0:00:19]} Nd7 {[%emt 0:00:29]} 25. Ng5 {[%emt 0:02:43][%csl LRf7,LRh7]} f6 {[%emt 0:00:28]} (25... Qc6 $11) 26. Ne4 {[%emt 0:00:00]} ({Don't play} 26. Nxh7 $6 Qe7 $11) ({Better is} 26. Qh5 $16 g6 27. Qxh7) 26... Qe7 {[%emt 0:00:09]} (26... Qc6 $11 {remains equal.}) 27. Bb4 {[%emt 0:00:00] White has more active pieces.} Qe6 {[%emt 0:00:13]} 28. Ka1 {[%emt 0:00:00]} Nb6 {[%emt 0:00:30]} (28... Kb8 $16) 29. c5 $1 $18 {[%emt 0:00:00]} Nd5 {[%emt 0:00:21]} 30. Qc4 {[%emt 0:00:25]} (30. Nd6+ $1 $16 Bxd6 31. cxd6) 30... Nxb4 $11 {[%emt 0:00:21]} 31. Qxb4 {[%emt 0:00:00]} Qc6 {[%emt 0:01:24]} 32. Nd6+ {[%emt 0:00:00]} (32. g4 {simplifies} Kb8 33. Qc4 Rh8 34. f3) 32... Bxd6 {[%emt 0:00:04]} 33. Rxd6 {[%emt 0:00:00]} (33. cxd6 {simplifies} Rd8 34. Qd2 Kb8 35. d7) 33... Qxg2 {[%emt 0:00:23][%mdl 12288] Endgame KQR-KQR} (33... Qb5 $1 $11 {and Black is okay.}) 34. c6 $2 {[%emt 0:00:00]} ({Not} 34. Qa4 Qf1+ 35. Rd1 (35. Ka2 Qb5 $11) 35... Qb5 36. Qg4+ Kb8 $11) (34. Qc4 $1 $18 {[%cal Rc4f7] is the precise move to win.}) 34... bxc6 $2 {[%emt 0:00:14][%mdl 8192]} (34... Qh1+ $2 35. Ka2 $18) (34... Qf1+ $16 35. Ka2 Qb5) 35. Qb6 $1 $18 {[%emt 0:00:00][%csl LRa6,LRc6] White is clearly winning.} Qf1+ {[%emt 0:00:14]} 36. Ka2 {[%emt 0:00:00]} Qc4+ {[%emt 0:00:01] [#]} 37. Kb1 $1 {[%emt 0:00:00]} Qf1+ {[%emt 0:00:12] [#]} 38. Kc2 $1 {[%emt 0:00:00]} Qe2+ {[%emt 0:00:10]} 39. Kc3 {[%emt 0:00:14] Weighted Error Value: White=0.51/Black=0.41} 1-0